{"text_format":"3","workbook":"xlsx","n_sheets":7,"sheets":["P&L","Balance Sheet","Cash Flow","Net Income & EPS Non-GAAP","Segment Results","Core Revenue by Segment (QTD)","Core Revenue by Segment (YTD)"],"not_rendered":{"defined_names":41},"read":"whole","date_system":"1900"}

{"sheet":"P&L","index":0,"n_rows":51,"n_cols":8,"rows_kept":51,"merged":[[0,0,0,7],[1,0,1,7],[2,0,2,7],[3,0,3,7],[4,0,4,7],[7,1,7,3],[7,5,7,7],[8,1,8,3],[8,5,8,7],[47,0,47,4],[50,0,50,4],[53,0,53,5]]}
["AGILENT TECHNOLOGIES, INC."]
["CONDENSED CONSOLIDATED STATEMENT OF OPERATIONS"]
["(In millions, except per share amounts)"]
["(Unaudited)"]
["PRELIMINARY"]
[]
[]
[null,"Three Months Ended",{"$nulls":3},"Three Months Ended"]
[null,"January 31,",{"$nulls":3},"January 31,"]
[null,2020,null,2019,null,2019,null,2018]
[]
["Net revenue",{"v":1357,"d":"$1,357"},null,{"v":1284,"d":"$1,284"}]
[]
["Costs and expenses:"]
["Cost of products and services",634,null,577]
["Research and development",104,null,102]
["Selling, general and administrative",404,null,355]
["Total costs and expenses",{"$f":"SUM(B15:B17)","v":{"v":1142,"d":"1,142"}},null,{"$f":"SUM(D15:D17)","v":{"v":1034,"d":"1,034"}},null,{"$f":"SUM(F15:F17)","v":0},null,{"$f":"SUM(H15:H17)","v":0}]
[]
["Income from operations",{"$f":"B12-B18","v":215},null,{"$f":"D12-D18","v":250},null,{"$f":"F12-F18","v":0},null,{"$f":"H12-H18","v":0}]
[]
["Interest income",3,null,10]
["Interest expense",{"v":-20,"d":"(20)"},null,{"v":-18,"d":"(18)"}]
["Other income (expense), net",21,null,6]
[]
["Income before taxes",{"$f":"SUM(B20:B24)","v":219},null,{"$f":"SUM(D20:D24)","v":248},null,{"$f":"SUM(F20:F24)","v":0},null,{"$f":"SUM(H20:H24)","v":0}]
[]
["Provision for (benefit from) income taxes",22,null,{"v":-256,"d":"(256)"}]
[]
["Net income",{"$f":"B26-B28","v":{"v":197,"d":"$197"}},null,{"$f":"D26-D28","v":{"v":504,"d":"$504"}},null,{"$f":"F26-F28","v":0},null,{"$f":"H26-H28","v":0}]
[]
[]
[]
["Net income per share:"]
["                             Basic",{"$f":"B30/B39","v":{"v":0.635483870967742,"d":"$0.64"}},null,{"$f":"D30/D39","v":{"v":1.5849056603773586,"d":"$1.58"}},null,{"$f":"F30/F39","v":{"$error":"#DIV/0!"}},null,{"$f":"H30/H39","v":{"$error":"#DIV/0!"}}]
["                             Diluted",{"$f":"B30/B40","v":{"v":0.6293929712460063,"d":"$0.63"}},null,{"$f":"D30/D40","v":{"v":1.565217391304348,"d":"$1.57"}},null,{"$f":"F30/F40","v":{"$error":"#DIV/0!"}},null,{"$f":"H30/H40","v":{"$error":"#DIV/0!"}}]
[]
["Weighted average shares used in computing net income per share:     "]
["                             Basic",310,null,318]
["                             Diluted",313,null,322]
{"$rows_empty":7}
["The preliminary income statement is estimated based on our current information."]
[]
[]
["Page 1"]

{"sheet":"Balance Sheet","index":1,"n_rows":57,"n_cols":7,"rows_kept":57,"merged":[[0,0,0,7],[1,0,1,7],[2,0,2,7],[3,0,3,7],[4,0,4,7],[56,0,56,6]]}
["AGILENT TECHNOLOGIES, INC."]
["CONDENSED CONSOLIDATED BALANCE SHEET"]
["(In millions, except par value and share amounts)"]
["(Unaudited)"]
["PRELIMINARY"]
[]
[]
[{"$nulls":4},"January 31,",null,"October 31,"]
[{"$nulls":4},2020,null,2019]
["ASSETS"]
[]
["Current assets:"]
[null,"Cash and cash equivalents",null,null,{"v":1226,"d":"$1,226"},null,{"v":1382,"d":"$1,382"}]
[null,"Accounts receivable, net",null,null,966,null,930]
[null,"Inventory",null,null,706,null,679]
[null,"Other current assets",null,null,204,null,198]
[null,null,"Total current assets",null,{"$f":"SUM(E13:E16)","v":{"v":3102,"d":"3,102"}},null,{"$f":"SUM(G13:G16)","v":{"v":3189,"d":"3,189"}}]
[]
["Property, plant and equipment, net",{"$nulls":3},844,null,850]
["Goodwill and other intangible assets, net",{"$nulls":3},{"$f":"3589+1059","v":{"v":4648,"d":"4,648"}},null,{"$f":"3593+1107","v":{"v":4700,"d":"4,700"}}]
["Long-term investments",{"$nulls":3},118,null,102]
["Other assets",{"$nulls":3},789,null,611]
[null,null,"Total assets",null,{"$f":"SUM(E17:E22)","v":{"v":9501,"d":"$9,501"}},null,{"$f":"SUM(G17:G22)","v":{"v":9452,"d":"$9,452"}}]
[]
["LIABILITIES AND EQUITY"]
[]
["Current liabilities:"]
[null,"Accounts payable",null,null,{"v":329,"d":"$329"},null,{"v":354,"d":"$354"}]
[null,"Employee compensation and benefits",null,null,253,null,334]
[null,"Deferred revenue",null,null,379,null,336]
[null,"Short-term debt",null,null,675,null,616]
[null,"Other accrued liabilities",null,null,256,null,440]
[null,null,"Total current liabilities",null,{"$f":"SUM(E28:E32)","v":{"v":1892,"d":"1,892"}},null,{"$f":"SUM(G28:G32)","v":{"v":2080,"d":"2,080"}}]
[]
["Long-term debt",{"$nulls":3},{"v":1787,"d":"1,787"},null,{"v":1791,"d":"1,791"}]
["Retirement and post-retirement benefits",{"$nulls":3},354,null,360]
["Other long-term liabilities",{"$nulls":3},620,null,473]
[null,null,"Total liabilities",null,{"$f":"SUM(E33:E37)","v":{"v":4653,"d":"4,653"}},null,{"$f":"SUM(G33:G37)","v":{"v":4704,"d":"4,704"}}]
[]
["Total Equity:"]
[null,"Stockholders' equity:"]
[null,"Preferred stock; $0.01 par value; 125 million"]
[null,null,"shares authorized; none issued and outstanding",null,"—  ",null,"—  "]
[null,"Common stock; $0.01 par value, 2 billion"]
[null,null,"shares authorized; 310 million shares at January 31, 2020"]
[null,null,"and 309 million shares at October 31, 2019, issued",null,3,null,3]
[null,"Additional paid-in capital",null,null,{"v":5293,"d":"5,293"},null,{"v":5277,"d":"5,277"}]
[null,"Accumulated earnings (deficit)",null,null,73,null,{"v":-18,"d":"(18)"}]
[null,"Accumulated other comprehensive loss",null,null,{"v":-521,"d":"(521)"},null,{"v":-514,"d":"(514)"}]
[null,null,"Total stockholders' equity",null,{"$f":"SUM(E43:E49)","v":{"v":4848,"d":"4,848"}},null,{"$f":"SUM(G43:G49)","v":{"v":4748,"d":"4,748"}}]
[{"$nulls":3},"Total liabilities and equity",{"$f":"E38+E50","v":{"v":9501,"d":"$9,501"}},null,{"$f":"G38+G50","v":{"v":9452,"d":"$9,452"}}]
[]
[]
[]
["The preliminary balance sheet is estimated based on our current information."]
[]
["Page 2"]

{"sheet":"Cash Flow","index":2,"n_rows":72,"n_cols":8,"rows_kept":72,"merged":[[0,0,0,7],[1,0,1,7],[2,0,2,7],[3,0,3,7],[4,0,4,7],[7,5,7,7],[71,0,71,7]]}
["AGILENT TECHNOLOGIES, INC."]
["CONDENSED CONSOLIDATED STATEMENT OF CASH FLOWS"]
["(In millions)"]
["(Unaudited)"]
["PRELIMINARY"]
[]
[]
[{"$nulls":5},"Three Months Ended"]
[{"$nulls":5},"January 31,",null,"January 31,"]
[{"$nulls":5},2020,null,2019]
["Cash flows from operating activities:"]
[null,"Net income",{"$nulls":3},{"v":197,"d":"$197"},null,{"v":504,"d":"$504"}]
[]
["Adjustments to reconcile net income to net cash provided by (used in) operating activities:"]
[null,"Depreciation and amortization",{"$nulls":3},79,null,54]
[null,"Share-based compensation",{"$nulls":3},27,null,24]
[null,"Excess and obsolete inventory related charges",{"$nulls":3},4,null,4]
[null,"Gain on fair value investment",{"$nulls":3},{"v":-16,"d":"(16)"},null,"—  "]
[null,"Other non-cash expenses, net",{"$nulls":3},2,null,3]
[null,"Changes in assets and liabilities:"]
[null,null,"Accounts receivable, net",null,null,{"v":-40,"d":"(40)"},null,{"v":-22,"d":"(22)"}]
[null,null,"Inventory",null,null,{"v":-32,"d":"(32)"},null,{"v":-12,"d":"(12)"}]
[null,null,"Accounts payable",null,null,{"v":-15,"d":"(15)"},null,{"v":-16,"d":"(16)"}]
[null,null,"Employee compensation and benefits",null,null,{"v":-80,"d":"(80)"},null,{"v":-71,"d":"(71)"}]
[null,null,"Other assets and liabilities ",null,null,{"v":-185,"d":"(185)"},null,{"v":-255,"d":"(255)"}]
["Net cash provided by (used in) operating activities (a)",{"$nulls":4},{"$f":"SUM(F12:F25)","v":{"v":-59,"d":"(59)"}},null,{"$f":"SUM(H12:H25)","v":213}]
[]
["Cash flows from investing activities:"]
[null,"Investments in property, plant and equipment",{"$nulls":3},{"v":-34,"d":"(34)"},null,{"v":-39,"d":"(39)"}]
[null,"Payment to acquire fair value investments",{"$nulls":3},{"v":-1,"d":"(1)"},null,{"v":-2,"d":"(2)"}]
[null,"Payment in exchange for convertible note",{"$nulls":3},"—  ",null,{"v":-1,"d":"(1)"}]
[null,"Acquisition of businesses and intangible assets, net of cash acquired",{"$nulls":3},"—  ",null,{"v":-248,"d":"(248)"}]
["Net cash used in investing activities",{"$nulls":4},{"$f":"SUM(F29:F32)","v":{"v":-35,"d":"(35)"}},null,{"$f":"SUM(H29:H32)","v":{"v":-290,"d":"(290)"}}]
[]
["Cash flows from financing activities:"]
[null,"Issuance of common stock under employee stock plans",{"$nulls":3},32,null,22]
[null,"Payment of taxes related to net share settlement of equity awards ",{"$nulls":3},{"v":-33,"d":"(33)"},null,{"v":-13,"d":"(13)"}]
[null,"Payment of dividends",{"$nulls":3},{"v":-56,"d":"(56)"},null,{"v":-52,"d":"(52)"}]
[null,"Proceeds from revolving credit facility",{"$nulls":3},432,null,"—  "]
[null,"Repayment of revolving credit facility",{"$nulls":3},{"v":-372,"d":"(372)"},null,"—  "]
[null,"Repayment of finance lease",{"$nulls":3},{"v":-4,"d":"(4)"},null,"—  "]
[null,"Purchase of non-controlling interest",{"$nulls":3},"—  ",null,{"v":-4,"d":"(4)"}]
[null,"Treasury stock repurchases",{"$nulls":3},{"v":-60,"d":"(60)"},null,{"v":-75,"d":"(75)"}]
["Net cash used in financing activities",{"$nulls":4},{"$f":"SUM(F36:F43)","v":{"v":-61,"d":"(61)"}},null,{"$f":"SUM(H36:H43)","v":{"v":-122,"d":"(122)"}}]
[]
["Effect of exchange rate movements",{"$nulls":4},{"v":-1,"d":"(1)"},null,9]
[]
["Net decrease in cash, cash equivalents and restricted cash",{"$nulls":4},{"$f":"F26+F33+F44+F46","v":{"v":-156,"d":"(156)"}},null,{"$f":"H26+H33+H44+H46","v":{"v":-190,"d":"(190)"}}]
[]
["Cash, cash equivalents and restricted cash at beginning of period",{"$nulls":4},{"v":1388,"d":"1,388"},null,{"v":2254,"d":"2,254"}]
[]
["Cash, cash equivalents and restricted cash at end of period",{"$nulls":4},{"$f":"SUM(F48:F50)","v":{"v":1232,"d":"$1,232"}},null,{"$f":"SUM(H48:H50)","v":{"v":2064,"d":"$2,064"}}]
[]
[]
["Reconciliation of cash, cash equivalents and restricted cash to the condensed consolidated balance sheet:"]
[]
[null,"Cash and cash equivalents",{"$nulls":3},{"v":1226,"d":"$1,226"},null,{"v":2057,"d":"$2,057"}]
[null,"Restricted cash, included in other assets",{"$nulls":3},6,null,7]
[null,"Total cash, cash equivalents and restricted cash",{"$nulls":3},{"$f":"SUM(F57:F58)","v":{"v":1232,"d":"$1,232"}},null,{"$f":"SUM(H57:H58)","v":{"v":2064,"d":"$2,064"}}]
[]
[]
["(a) Cash payments included in operating activities:"]
[]
[null,"Income tax payments (refunds), net",{"$nulls":3},{"v":241,"d":"$241"},null,{"v":21,"d":"$21"}]
[null,"Interest payments",{"$nulls":3},{"v":17,"d":"$17"},null,{"v":25,"d":"$25"}]
[]
[]
[]
["The preliminary cash flow is estimated based on our current information."]
[]
[]
["Page 3"]

{"sheet":"Net Income & EPS Non-GAAP","index":3,"n_rows":40,"n_cols":15,"rows_kept":40,"merged":[[0,0,0,15],[1,0,1,15],[2,0,2,15],[3,0,3,15],[4,0,4,15],[6,4,6,8],[6,10,6,14],[7,4,7,8],[7,10,7,14],[9,7,9,8],[9,13,9,14],[21,0,21,8],[22,0,22,9],[23,0,23,14],[24,1,24,14],[25,1,25,14],[26,1,26,14],[27,1,27,14],[28,1,28,14],[30,0,30,14],[32,0,32,14],[34,0,34,14],[37,0,37,14],[39,0,39,14]]}
["AGILENT TECHNOLOGIES, INC."]
["NON-GAAP NET INCOME AND DILUTED EPS RECONCILIATIONS"]
["(In millions, except per share amounts)"]
["(Unaudited)"]
["PRELIMINARY"]
[]
[{"$nulls":4},"Three Months Ended",{"$nulls":5},"Three Months Ended"]
[{"$nulls":4},"January 31,",{"$nulls":5},"January 31,"]
[{"$nulls":4},2020,"Diluted EPS",null,2019,"Diluted EPS",null,2019,"Diluted EPS",null,2018,"Diluted EPS"]
[]
["GAAP net income",{"$nulls":3},{"v":197,"d":"$197"},{"v":0.63,"d":"$0.63"},null,{"v":504,"d":"$504"},{"v":1.57,"d":"$1.57"}]
[null,"Non-GAAP adjustments:"]
[null,null,"Intangible amortization",null,48,0.15,null,28,0.09]
[null,null,"Transformational initiatives",null,13,0.04,null,5,0.02]
[null,null,"Acquisition and integration costs",null,13,0.04,null,10,0.03]
[null,null,"NASD site costs",null,"—  ","—  ",null,2,0.01]
[null,null,"Other",null,6,0.02,null,1,"—  "]
[null,null,"Tax benefit on intra-entity asset transfer",null,"—  ","—  ",null,{"v":-299,"d":"(299)"},{"v":-0.93,"d":"(0.93)"}]
[null,null,"Adjustment for taxes (a)",null,{"v":-25,"d":"(25)"},{"v":-0.07,"d":"(0.07)"},null,{"v":-7,"d":"(7)"},{"v":-0.03,"d":"(0.03)"}]
["Non-GAAP net income",{"$nulls":3},{"$f":"SUM(E11:E19)","v":{"v":252,"d":"$252"}},{"$f":"SUM(F11:F19)","v":{"v":0.81,"d":"$0.81"}},null,{"$f":"SUM(H11:H19)","v":{"v":244,"d":"$244"}},{"$f":"SUM(I11:I19)","v":{"v":0.7600000000000001,"d":"$0.76"}},null,{"$f":"SUM(K11:K19)","v":0},{"$f":"SUM(L11:L19)","v":0},null,{"$f":"SUM(N11:N19)","v":0},{"$f":"SUM(O11:O19)","v":0}]
[]
["(a) The adjustment for taxes excludes tax benefits that management believes are not directly related to on-going operations and which are either isolated or cannot be expected to occur again with any regularity or predictability. For the three months ended January 31, 2020 and 2019, management used a non-GAAP effective tax rate of 15.5% and 17%, respectively. "]
[]
["We provide non-GAAP net income and non-GAAP net income per share amounts in order to provide meaningful supplemental information regarding our operational performance and our prospects for the future. These supplemental measures exclude, among other things, charges related to amortization of intangibles, transformational initiatives, acquisition and integration costs, NASD site costs, and tax benefit on intra-entity asset transfer.\n"]
[null,"Transformational initiatives include expenses associated with targeted cost reduction activities such as manufacturing transfers including costs to move manufacturing due to new tariffs and tariff remediation actions, small site consolidations, legal entity and other business reorganizations, insourcing or outsourcing of activities. Such costs may include move and relocation costs, one-time termination benefits and other one-time reorganization costs. Included in this category are also expenses associated with company programs to transform our product lifecycle management (PLM) system, human resources and financial systems.\n\n"]
[null,"Acquisition and Integration costs include all incremental expenses incurred to investigate or effect a business combination. Such acquisition costs may include advisory, legal, accounting, valuation, and other professional or consulting fees. Such integration costs may include expenses directly related to integration of business and facility operations, the transfer of assets and intellectual property, information technology systems and infrastructure and other employee-related costs. \n"]
[null,"NASD site costs include all the costs related to the expansion of our manufacturing of nucleic acid active pharmaceutical ingredients incurred prior to the commencement of commercial manufacturing. "]
[null,"Other includes certain legal costs, settlements and an unrealized gain related to our equity securities in addition to other miscellaneous adjustments."]
[null,"Tax benefit on intra-entity asset transfer relates to our operations in Singapore along with our application of the new accounting rules for income tax consequences of intra-entity transfer of assets as adopted on November 1, 2018."]
[]
["Our management uses non-GAAP measures to evaluate the performance of our core businesses, to estimate future core performance and to compensate employees. Since management finds this measure to be useful, we believe that our investors benefit from seeing our results “through the eyes” of management in addition to seeing our GAAP results. This information facilitates our management’s internal comparisons to our historical operating results as well as to the operating results of our competitors."]
[]
["Our management recognizes that items such as amortization of intangibles can have a material impact on our cash flows and/or our net income. Our GAAP financial statements including our statement of cash flows portray those effects. Although we believe it is useful for investors to see core performance free of special items, investors should understand that the excluded items are actual expenses that may impact the cash available to us for other uses. To gain a complete picture of all effects on the company’s profit and loss from any and all events, management does (and investors should) rely upon the GAAP income statement. The non-GAAP numbers focus instead upon the core business of the company, which is only a subset, albeit a critical one, of the company’s performance."]
[]
["Readers are reminded that non-GAAP numbers are merely a supplement to, and not a replacement for, GAAP financial measures. They should be read in conjunction with the GAAP financial measures. It should be noted as well that our non-GAAP information may be different from the non-GAAP information provided by other companies."]
[]
["The preliminary non-GAAP net income and diluted EPS reconciliation is estimated based on our current information."]
[]
[]
["Page 4"]

{"sheet":"Segment Results","index":4,"n_rows":65,"n_cols":5,"rows_kept":65,"merged":[[0,0,0,4],[1,0,1,4],[2,0,2,4],[3,0,3,4],[4,0,4,4],[57,0,57,4],[59,0,59,4],[64,0,64,4]]}
["AGILENT TECHNOLOGIES, INC."]
["SEGMENT INFORMATION"]
["(In millions, except where noted)"]
["(Unaudited)"]
["PRELIMINARY"]
[]
["Life Sciences and Applied Markets Group"]
[null,null,"Q1'20",null,"Q1'19"]
["Revenue",null,{"v":638,"d":"$638"},null,{"v":607,"d":"$607"}]
["Gross Margin, %",null,{"v":0.602,"d":"60.2%"},null,{"v":0.621,"d":"62.1%"}]
["Income from Operations",null,{"v":158,"d":"$158"},null,{"v":159,"d":"$159"}]
["Operating margin, %",null,{"v":0.248,"d":"24.8%"},null,{"v":0.261,"d":"26.1%"}]
[]
[]
["Diagnostics and Genomics Group"]
[null,null,{"$f":"C8","v":"Q1'20"},null,{"$f":"E8","v":"Q1'19"}]
["Revenue",null,{"v":249,"d":"$249"},null,{"v":235,"d":"$235"}]
["Gross Margin, %",null,{"v":0.517,"d":"51.7%"},null,{"v":0.54,"d":"54.0%"}]
["Income from Operations",null,{"v":34,"d":"$34"},null,{"v":33,"d":"$33"}]
["Operating margin, %",null,{"v":0.135,"d":"13.5%"},null,{"v":0.14,"d":"14.0%"}]
[]
[]
["Agilent CrossLab Group"]
[null,null,{"$f":"C16","v":"Q1'20"},null,{"$f":"E16","v":"Q1'19"}]
["Revenue",null,{"v":470,"d":"$470"},null,{"v":442,"d":"$442"}]
["Gross Margin, %",null,{"v":0.518,"d":"51.8%"},null,{"v":0.513,"d":"51.3%"}]
["Income from Operations",null,{"v":119,"d":"$119"},null,{"v":105,"d":"$105"}]
["Operating margin, %",null,{"v":0.254,"d":"25.4%"},null,{"v":0.239,"d":"23.9%"}]
[]
[]
[]
[]
["Life Sciences and Applied Markets Group"]
[null,null,"Q1'19",null,"Q1'18"]
["Revenue"]
["Gross Margin, %"]
["Income from Operations"]
["Operating margin, %"]
[]
[]
["Diagnostics and Genomics Group"]
[null,null,{"$f":"C34","v":"Q1'19"},null,{"$f":"E34","v":"Q1'18"}]
["Revenue"]
["Gross Margin, %"]
["Income from Operations"]
["Operating margin, %"]
[]
[]
["Agilent CrossLab Group"]
[null,null,{"$f":"C34","v":"Q1'19"},null,{"$f":"E34","v":"Q1'18"}]
["Revenue"]
["Gross Margin, %"]
["Income from Operations"]
["Operating margin, %"]
[]
[]
[]
["Income from operations reflect the results of our reportable segments under Agilent's management reporting system which are not necessarily in conformity with GAAP financial measures. Income from operations of our reporting segments exclude, among other things, charges related to amortization of intangibles, transformational initiatives, acquisition and integration costs, and NASD site costs."]
[]
["Readers are reminded that non-GAAP numbers are merely a supplement to, and not a replacement for, GAAP financial measures.  They should be read in conjunction with the GAAP financial measures.  It should be noted as well that our non-GAAP information may be different from the non-GAAP information provided by other companies."]
[]
["The preliminary segment information is estimated based on our current information. "]
[]
[]
["Page 5"]

{"sheet":"Core Revenue by Segment (QTD)","index":5,"n_rows":50,"n_cols":9,"rows_kept":50,"merged":[[0,0,0,8],[1,0,1,8],[2,0,2,8],[3,0,3,8],[4,0,4,8],[5,0,5,8],[7,1,7,8],[9,1,9,3],[23,1,23,3],[23,5,23,6],[24,6,25,6],[24,8,25,8],[37,0,37,8],[39,0,39,8],[41,0,41,8],[43,0,43,8],[46,0,46,8],[49,0,49,8]]}
["AGILENT TECHNOLOGIES, INC."]
["RECONCILIATIONS OF REVENUE BY SEGMENT  EXCLUDING "]
["ACQUISITIONS, DIVESTITURES AND THE IMPACT OF CURRENCY ADJUSTMENTS (CORE)"]
["(in millions)"]
["(Unaudited)"]
["PRELIMINARY"]
[]
[null,"Year-over-Year"]
[]
[null,"GAAP"]
[{"$nulls":3},"Year-over-Year"]
["GAAP Revenue by Segment","Q1'20","Q1'19","% Change"]
[]
["Life Sciences and Applied Markets Group",{"v":638,"d":"$638"},{"v":607,"d":"$607"},{"v":0.05,"d":"5%"}]
[]
["Diagnostics and Genomics Group",249,235,{"v":0.06,"d":"6%"}]
[]
["Agilent CrossLab Group",470,442,{"v":0.06,"d":"6%"}]
[]
["Agilent",{"$f":"SUM(B14:B19)","v":{"v":1357,"d":"$1,357"}},{"$f":"SUM(C14:C19)","v":{"v":1284,"d":"$1,284"}},{"v":0.06,"d":"6%"}]
[]
[]
[]
[null,"Non-GAAP \n(excluding Acquisitions & Divestitures)",{"$nulls":3},"Year-over-Year\nat Constant Currency (a)"]
[{"$nulls":3},"Year-over-Year",null,"Year-over-Year","Percentage Point Impact from Currency",null,"Current Quarter Currency Impact (b)"]
["Non GAAP Revenue by Segment",{"$f":"B12","v":"Q1'20"},{"$f":"C12","v":"Q1'19"},"% Change",null,"% Change"]
[]
["Life Sciences and Applied Markets Group",{"v":590,"d":"$590"},{"v":607,"d":"$607"},{"v":-0.03,"d":"(3%)"},null,{"v":-0.02,"d":"(2%)"},"-1 ppt",null,{"v":-2,"d":"$(2)"}]
[]
["Diagnostics and Genomics Group ",249,235,{"v":0.06,"d":"6%"},null,{"v":0.07,"d":"7%"},"-1 ppt",null,{"v":-1,"d":"(1)"}]
[]
["Agilent CrossLab Group ",470,442,{"v":0.06,"d":"6%"},null,{"v":0.07,"d":"7%"},"-1 ppt",null,{"v":-2,"d":"(2)"}]
[]
["Agilent (Core)",{"$f":"SUM(B28:B33)","v":{"v":1309,"d":"$1,309"}},{"$f":"SUM(C28:C33)","v":{"v":1284,"d":"$1,284"}},{"v":0.02,"d":"2%"},null,{"v":0.02,"d":"2%"},"—  ",null,{"$f":"SUM(I28:I33)","v":{"v":-5,"d":"$(5)"}}]
[]
[]
[]
["We compare the year-over-year change in revenue excluding the effect of recent acquisitions and divestitures and foreign currency rate fluctuations to assess the performance of our underlying business.  "]
[]
["(a) The constant currency year-over-year growth percentage is calculated by recalculating all periods in the comparison period at the foreign currency exchange rates used for accounting during the last month of the current quarter, and then using those revised values to calculate the year-over-year percentage change."]
[]
["(b) The dollar impact from the current quarter currency impact is equal to the total year-over-year dollar change less the constant currency year-over-year change."]
[]
["The preliminary reconciliation of GAAP revenue adjusted for recent acquisitions and divestitures and impact of currency is estimated based on our current information."]
[]
[]
[]
[]
[]
["Page 6"]

{"sheet":"Core Revenue by Segment (YTD)","index":6,"n_rows":51,"n_cols":9,"rows_kept":51,"hidden":true,"merged":[[0,0,0,8],[1,0,1,8],[2,0,2,8],[3,0,3,8],[4,0,4,8],[5,0,5,8],[7,1,7,8],[9,1,9,3],[24,1,24,3],[24,5,24,6],[25,6,26,6],[25,8,26,8],[38,0,38,8],[40,0,40,8],[42,0,42,8],[44,0,44,8],[47,0,47,8],[50,0,50,8]]}
["AGILENT TECHNOLOGIES, INC."]
["RECONCILIATIONS OF REVENUE BY SEGMENT  EXCLUDING "]
["ACQUISITIONS, DIVESTITURES AND THE IMPACT OF CURRENCY ADJUSTMENTS (CORE)"]
["(in millions)"]
["(Unaudited)"]
["PRELIMINARY"]
[]
[null,"Year-over-Year"]
[]
[null,"GAAP"]
[{"$nulls":3},"Year-over-Year"]
["GAAP Revenue by Segment","FY18","FY17","% Change"]
[]
["Life Sciences and Applied Markets Group"]
[]
["Diagnostics and Genomics Group"]
[]
["Agilent CrossLab Group"]
[]
["Agilent",{"$f":"SUM(B14:B19)","v":0},{"$f":"SUM(C14:C19)","v":0}]
[]
[]
[]
[]
[null,"Non-GAAP \n(excluding Acquisitions & Divestitures)",{"$nulls":3},"Year-over-Year\nat Constant Currency (a)"]
[{"$nulls":3},"Year-over-Year",null,"Year-over-Year","Percentage Point Impact from Currency",null,"Current Year Currency Impact (b)"]
["Non GAAP Revenue by Segment",{"$f":"B12","v":"FY18"},{"$f":"C12","v":"FY17"},"% Change",null,"% Change"]
[]
["Life Sciences and Applied Markets Group"]
[]
["Diagnostics and Genomics Group "]
[]
["Agilent CrossLab Group "]
[]
["Agilent (Core)",{"$f":"SUM(B29:B34)","v":0},{"$f":"SUM(C29:C34)","v":0},{"$nulls":5},{"$f":"SUM(I29:I34)","v":0}]
[]
[]
[]
["We compare the year-over-year change in revenue excluding the effect of recent acquisitions and divestitures and foreign currency rate fluctuations to assess the performance of our underlying business.  "]
[]
["(a) The constant currency year-over-year growth percentage is calculated by recalculating all periods in the comparison period at the foreign currency exchange rates used for accounting during the last month of the current quarter, and then using those revised values to calculate the year-over-year percentage change."]
[]
["(b) The dollar impact from the current year currency impact is equal to the total year-over-year dollar change less the constant currency year-over-year change."]
[]
["The preliminary reconciliation of GAAP revenue adjusted for recent acquisitions and divestitures and impact of currency is estimated based on our current information."]
[]
[]
[]
[]
[]
["Page 7"]